Cogmind - Beta 14 @@@ ROGUE MODE // 2025.01.04 @ 08:00:04 Player: Dosh Result: Destroyed by H-66 Slayer with Gauss Rifle Performance ------------- Evolutions (4) 2000 Regions Visited (7) 1400 Robots Destroyed (54) 270 Value Destroyed (1271) 1271 Prototype IDs (29) 580 Alien Tech Used (0) 0 Bonus (300) 300 TOTAL SCORE: 5821 Bonus ------- Registered with UFD 300 Cogmind --------- Core Integrity 0/850 Matter 36/300 Energy 100/100 System Corruption 8% Temperature Cool (0) Movement Core (700) Ox13 Location -6/Factory Parts ------- > --- POWER (2) -------- (None) > --- PROPULSION (2) --- (None) > --- UTILITY (7) ------ High-capacity Storage Unit Advanced Targeting Computer > --- WEAPON (4) ------- (None) > --- INVENTORY (20) --- Improved Ion Engine Light Treads Cargo Legs Huge Storage Unit Matter Compressor (106) Experimental Signal Interpreter Transmission Jammer System Restoration Module Phase Cannon Heavy Assault Rifle Heavy Assault Rifle Subdweller Machine Gun CPS Tube (2) CPS Tube (2) Peak State ------------ > --- POWER ------------ Light Ion Engine Fusion Compressor > --- PROPULSION ------- Overtuned Huge Scrapsphere > --- UTILITY ---------- Scrap Suit High-capacity Storage Unit Machine Analyzer Advanced Targeting Computer Transmission Jammer Shield Generator > --- WEAPON ----------- Improved Heavy Laser Overtuned Beamcaster Heavy Linear Accelerator > --- INVENTORY -------- Light Treads Light Treads Improved Treads Cargo Legs Huge Storage Unit Matter Compressor Experimental Signal Interpreter Hardened Heavy Armor Plating Hardened Heavy Armor Plating System Restoration Module Phase Cannon Heavy Assault Rifle Heavy Assault Rifle Subdweller Machine Gun Grenade Launcher CPS Tube CPS Tube [Rating: 74] Favorites ----------- Power Ion Engine Engine Ion Engine Power Core Fusion Compressor Propulsion Light Treads Treads Light Treads Wheel Overtuned Huge Scrapsphere Utility High-capacity Storage Unit Device Shield Generator Storage High-capacity Storage Unit Processor Advanced Targeting Computer Protection Core Shielding Weapon Subdweller Machine Gun Energy Gun Overtuned Beamcaster Energy Cannon Beam Cannon Ballistic Gun Subdweller Machine Gun Ballistic Cannon Light Cannon Launcher Grenade Launcher Special Weapon Mining Laser Build | -11 -10 -10 -9 -9 -6 -6 -6 ------- Run | Yrd Mat Sub Rec Scr Fac Was Fac Slots Evolved 8 | . . . . . 8 . . Power 1 | . . . . . 1 . . Propulsion . | . . . . . . . . Utility 5 | . . . . . 5 . . Weapon 2 | . . . . . 2 . . Parts Attached 49 | 6 13 5 2 1 11 1 10 Power 7 | 1 2 . . . 1 . 3 Engine 5 | 1 2 . . . 1 . 1 Core 2 | . . . . . . . 2 Reactor . | . . . . . . . . Propulsion 6 | 2 2 . 1 . 1 . . Treads 5 | 2 2 . 1 . . . . Leg . | . . . . . . . . Wheel 1 | . . . . . 1 . . Hover . | . . . . . . . . Flight . | . . . . . . . . Utility 14 | 1 3 . . 1 5 . 4 Device 5 | . . . . 1 3 . 1 Storage 2 | 1 1 . . . . . . Processor 3 | . 1 . . . 1 . 1 Hackware . | . . . . . . . . Protection 4 | . 1 . . . 1 . 2 Artifact . | . . . . . . . . Weapon 22 | 2 6 5 1 . 4 1 3 Energy Gun 5 | 2 . . . . 2 . 1 Energy Cannon 3 | . 1 2 . . . . . Ballistic Gun 5 | . 1 1 1 . 2 . . Ballistic Cannon 5 | . 3 . . . . 1 1 Launcher 2 | . . 1 . . . . 1 Special Weapon 2 | . 1 1 . . . . . Impact Weapon . | . . . . . . . . Slashing Weapon . | . . . . . . . . Piercing Weapon . | . . . . . . . . Special Melee Weapon . | . . . . . . . . Unidentified Prototypes 2 | . . . . . 1 . 1 Parts Lost 17 | . 1 . 1 . 1 3 11 Power 4 | . . . . . . 2 2 Propulsion 2 | . 1 . . . . . 1 Utility 5 | . . . . . 1 . 4 Weapon 6 | . . . 1 . . 1 4 Highest Loss Streak 10 | . 1 . 1 . 1 3 10 To Critical Strikes 1 | . . . . . . 1 . Average Slot Usage (%) 94 | . 95 100 100 100 76 57 66 Engine 12 | . 14 14 14 14 13 6 4 Treads 23 | . 27 28 28 28 . . . Device 4 | . . . . 6 19 13 19 Storage 12 | . 14 14 14 14 6 6 6 Processor 2 | . 7 . . . . 6 11 Protection 7 | . 2 14 14 7 3 . . Energy Gun 2 | . 5 . . . 12 9 7 Energy Cannon 2 | . . 11 4 . . . . Ballistic Gun 15 | . 9 1 23 28 13 6 . Ballistic Cannon 4 | . 11 12 . . . . 5 Peak Build Rating 74 | 6 8 11 12 17 66 60 74 Average Rating 19 | 3 7 9 11 14 60 47 63 On Entrance 21 | . 6 8 11 12 17 59 55 Naked Turns . | . . . . . . . . Heaviest Build 111 | 14 52 53 53 54 93 92 111 Greatest Support 40 | 40 40 40 40 40 20 20 20 Greatest Overweight (x) 5 | . 2 1 1 1 4 4 5 Average Overweight (x) 1 | . . 1 1 1 3 2 3 Largest Inventory Capacity 20 | 8 20 20 20 20 20 20 20 Average Capacity 19 | 5 19 20 20 20 20 20 20 Most Carried 20 | 1 13 16 19 20 20 20 20 Average Carried 15 | . 9 14 16 18 17 19 19 Final Capacity 20 | 8 20 20 20 20 20 20 20 Final Carried 20 | 1 12 16 17 20 19 20 15 Class Distribution -------------------- 84% | Mutant 13% | Scrapper Dominant Class ---------------- Mutant | -10/Materials Mutant | -10/Subcaves Mutant | -9/Recycling Mutant | -9/Scraptown Scrapper | -6/Factory Scrapper | -6/Waste Scrapper | -6/Factory Resources | -11 -10 -10 -9 -9 -6 -6 -6 ----------- Run | Yrd Mat Sub Rec Scr Fac Was Fac Matter Collected 1498 | 242 501 237 179 19 200 . 120 Remotely . | . . . . . . . . Salvage Created 1653 | . 582 215 373 . 97 . 386 Parts 118 | . 51 15 15 . 2 . 35 Haulers Intercepted 5 | . 2 . . . 1 . 2 Recyclers Shooed 1 | . 1 . . . . . . Parts Field Recycled . | . . . . . . . . Retrieved Matter . | . . . . . . . . Parts Self-Destructed 10 | . . 10 . . . . . Prevented . | . . . . . . . . Kills | -11 -10 -10 -9 -9 -6 -6 -6 ------- Run | Yrd Mat Sub Rec Scr Fac Was Fac Combat Hostiles Destroyed 36 | . 18 10 1 . . . 7 Guns 9 | . 7 . 1 . . . 1 Cannons 22 | . 11 6 . . . . 5 AOE 3 | . . 3 . . . . . Classes Destroyed 15 | . 5 3 1 . . . 6 Worker 1 | . . . . . . . 1 Builder 3 | . 1 . . . . . 2 Tunneler 1 | . . . . . . . 1 Hauler 5 | . 2 . . . 1 . 2 Recycler 4 | . . . 4 . . . . Mechanic 1 | . . . . . . . 1 Turret 2 | . . 2 . . . . . Watcher 1 | . 1 . . . . . . Swarmer 15 | . 8 4 . . . . 3 Saboteur 1 | . . . . . . . 1 Grunt 10 | . 10 . . . . . . Sentry 2 | . . 1 1 . . . . Specialist 1 | . . . . . . . 1 Hunter 2 | . . . . . . . 2 Subdweller 5 | . . 5 . . . . . Best Kill Streak 6 | . 3 6 3 . 1 . 6 Combat Bots Only 4 | . 3 4 1 . . . 4 Max Kills in Single Turn 2 | . 1 2 2 . 1 . 1 Gunslinging . | . . . . . . . . Exploded 2 | . . 2 . . . . . Melee . | . . . . . . . . Uniques/NPCs Destroyed . | . . . . . . . . Combat | -11 -10 -10 -9 -9 -6 -6 -6 -------- Run | Yrd Mat Sub Rec Scr Fac Was Fac Hostile Shots Fired 404 | . 80 40 6 . 2 3 273 Missed 108 | . 26 13 1 . 1 . 67 Damage Taken 5128 | . 557 494 72 . 301 84 3620 Core 988 | . 79 39 12 . 62 56 740 Absorbed by Shields 154 | . . . . . 54 30 70 Redirected to Shielding 10 | . . 8 2 . . . . Regen/Repaired (Parts) 649 | . 175 . . . 1 . 473 Core Remaining (%) 74 | 100 . . . 48 . . . Volleys Fired 146 | . 72 37 5 . 3 . 29 Largest 4 | . 2 2 2 . 4 . 3 Hottest 248 | . 120 135 90 . 248 . 248 Shots Fired 267 | . 144 64 10 . 12 . 37 Gun 112 | . 83 . 6 . 12 . 11 Cannon 129 | . 53 50 4 . . . 22 Launcher 16 | . . 12 . . . . 4 Special 10 | . 8 2 . . . . . Kinetic 152 | . 90 28 6 . 6 . 22 Thermal 64 | . 19 24 4 . 6 . 11 Explosive 16 | . . 12 . . . . 4 Electromagnetic 35 | . 35 . . . . . . Robot Hit Streak 9 | . 7 9 8 . 4 . 8 Robot Miss Streak 5 | . 5 2 1 . 2 . 1 Penetration Max . | . . . . . . . . Secondary Targets . | . . . . . . . . Shots Hit Robots 139 | . 68 36 8 . 7 . 20 Core Hits 86 | . 34 23 6 . 4 . 19 Critical Kills 1 | . . 1 . . . . . Critical Parts Destroyed 1 | . 1 . . . . . . Critical Strikes 7 | . 4 1 . . . . 2 Meltdown 1 | . . 1 . . . . . Destroy 1 | . 1 . . . . . . Blast 5 | . 3 . . . . . 2 Melee Attacks . | . . . . . . . . Impact . | . . . . . . . . Slashing . | . . . . . . . . Piercing . | . . . . . . . . Sneak Attacks . | . . . . . . . . Combat Hostiles . | . . . . . . . . Follow-up Attacks . | . . . . . . . . Damage Inflicted 4003 | . 979 1108 179 . 167 . 1570 Guns 809 | . 410 . 99 . 167 . 133 Cannons 2275 | . 527 639 69 . . . 1040 Explosions 856 | . . 469 . . . . 387 Melee . | . . . . . . . . Ramming 39 | . 18 . 11 . . . 10 Kinetic 2218 | . 665 339 99 . 75 . 1040 Thermal 694 | . 100 300 69 . 92 . 133 Explosive 856 | . . 469 . . . . 387 Electromagnetic 196 | . 196 . . . . . . Impact . | . . . . . . . . Slashing . | . . . . . . . . Piercing . | . . . . . . . . Highest Corruption 8 | . 1 1 1 . . . 8 Average Corruption 1 | . 1 1 1 . . . 5 Corruption Purged . | . . . . . . . . Corruption Blocked . | . . . . . . . . Effects 23 | . 6 7 9 . . . 1 Message Errors 3 | . 2 . 1 . . . . Matter Fused 6 | . 2 2 2 . . . . Heat Flow Errors 4 | . 1 3 . . . . . Data Loss (minor) 9 | . 1 2 5 . . . 1 Data Loss (major) 1 | . . . 1 . . . . Overload Shots . | . . . . . . . . Overflow Damage 158 | . 4 10 . . . . 144 Projectiles 158 | . 4 10 . . . . 144 Explosions . | . . . . . . . . Melee . | . . . . . . . . Knockbacks 12 | . 2 6 . . . . 4 Impact . | . . . . . . . . Kinetic 10 | . 2 6 . . . . 2 Secondary 2 | . . . . . . . 2 Self-Inflicted Damage 44 | . . . . . . . 44 Shots 3 | . . . . . . . 3 Rammed 9 | . 5 . 3 . . . 1 Targets Rammed 10 | . 5 . 4 . . . 1 Kicked . | . . . . . . . . Crushed 1 | . . . 1 . . . . Highest Temperature 281 | . 281 237 78 . 265 . 174 Average Temperature 62 | . 50 111 40 . 121 . 67 Received Heat Transfer 402 | . 195 105 27 . 9 . 66 Effects 2 | . . . . . 2 . . Interference 2 | . . . . . 2 . . Siege Activations . | . . . . . . . . Robots Corrupted 1 | . . . . . . . 1 Combat Hostiles 1 | . . . . . . . 1 Parts Fried 1 | . . . . . . . 1 Impact Corruptions 1 | . . . . . . . 1 Robots Melted 1 | . . 1 . . . . . Combat Hostiles 1 | . . 1 . . . . . Parts Melted 4 | . . 3 1 . . . . Heat Transferred 1423 | . 272 629 148 . 150 . 224 Parts Sabotaged . | . . . . . . . . Parts Stolen . | . . . . . . . . Parts Stripped . | . . . . . . . . Power Chain Reactions . | . . . . . . . . Alert | -11 -10 -10 -9 -9 -6 -6 -6 ------- Run | Yrd Mat Sub Rec Scr Fac Was Fac Peak Influence 393 | . 393 . 158 . 67 2 129 Initial 63 | . . . 63 . . 2 . Average 102 | . 228 . 32 . 23 1 35 Maximum Alert Level 1 | . 1 . . . . . . Low Security (%) 75 | 100 32 . 100 . 100 100 100 Level 1 24 | . 67 . . . . . . Level 2 . | . . . . . . . . Level 3 . | . . . . . . . . Level 4 . | . . . . . . . . Level 5 . | . . . . . . . . High Security . | . . . . . . . . Max Security . | . . . . . . . . Squads Dispatched 6 | . 4 . . . 1 . 1 Investigation 3 | . 2 . . . 1 . . Extermination 1 | . . . . . . . 1 Reinforcement 2 | . 2 . . . . . . Assault . | . . . . . . . . Garrison . | . . . . . . . . Intercept . | . . . . . . . . Searches Triggered . | . . . . . . . . Construction Impeded . | . . . . . . . . Haulers Reinforced . | . . . . . . . . Active Scanning Responses . | . . . . . . . . Cargo Convoy Interrupts 1 | . . . . . . . 1 Stealth | -11 -10 -10 -9 -9 -6 -6 -6 --------- Run | Yrd Mat Sub Rec Scr Fac Was Fac Distress Signals 2 | . . . . . . . 2 Communications Jammed . | . . . . . . . . Distress Signals . | . . . . . . . . Times Spotted 87 | . 37 12 1 . 3 6 28 Peak Tracking Total 16 | . 5 4 1 . 2 6 16 Tactical Retreats 12 | . 8 2 . . 1 . 1 Traps | -11 -10 -10 -9 -9 -6 -6 -6 ------- Run | Yrd Mat Sub Rec Scr Fac Was Fac Traps Triggered 2 | . . 1 . . 1 . . Indirectly . | . . . . . . . . Trap Hack Attempts . | . . . . . . . . Triggered . | . . . . . . . . Disarmed . | . . . . . . . . Reprogrammed . | . . . . . . . . Reused . | . . . . . . . . Traps Extracted . | . . . . . . . . Installed . | . . . . . . . . Triggered . | . . . . . . . . Machines | -11 -10 -10 -9 -9 -6 -6 -6 ---------- Run | Yrd Mat Sub Rec Scr Fac Was Fac Machines Disabled 6 | . 1 5 . . . . . Max in Single Turn 2 | . 1 2 . . . . . Machines Repaired . | . . . . . . . . Machines Dismantled . | . . . . . . . . Machines Sabotaged . | . . . . . . . . Overloaded Fab Kills . | . . . . . . . . Hacking | -11 -10 -10 -9 -9 -6 -6 -6 --------- Run | Yrd Mat Sub Rec Scr Fac Was Fac Machines Accessed 26 | . 5 1 7 2 6 . 5 Terminals 13 | . 4 . 5 . 3 . 1 Fabricators 3 | . . . . . 2 . 1 Repair Stations 2 | . 1 . . . . . 1 Recycling Units 3 | . . . 2 . . . 1 Scanalyzers 1 | . . . . . . . 1 Garrison Access 1 | . . . . . 1 . . Total Hacks 59 | . 13 1 14 6 9 . 16 Successful 40 | . 7 1 10 6 3 . 13 Failed 19 | . 6 . 4 . 6 . 3 Catastrophic 5 | . 1 . 1 . 2 . 1 Database Lockouts . | . . . . . . . . Manual 25 | . 7 . 12 . 5 . 1 Terminals 26 | . 9 . 11 . 5 . 1 Fabricators 6 | . . . . . 3 . 3 Repair Stations 11 | . 4 . . . . . 7 Recycling Units 5 | . . . 3 . . . 2 Scanalyzers 3 | . . . . . . . 3 Garrison Access 1 | . . . . . 1 . . Terminal Hacks 10 | . 1 1 2 6 . . . Record 5 | . . . . 5 . . . Robot Schematic 1 | . 1 . . . . . . Prototype ID Bank 2 | . . . 2 . . . . Derelict Proto ID Bank 2 | . . 1 . 1 . . . Fabricator Hacks 3 | . . . . . 1 . 2 Network Status 3 | . . . . . 1 . 2 Repair Station Hacks 10 | . 4 . . . . . 6 Scan Component 5 | . 2 . . . . . 3 Repair 5 | . 2 . . . . . 3 Recycling Unit Hacks 1 | . . . . . . . 1 Retrieve Matter 1 | . . . . . . . 1 Scanalyzer 3 | . . . . . . . 3 Insert Component 1 | . . . . . . . 1 Analyze 2 | . . . . . . . 2 Garrison Access Hacks . | . . . . . . . . Unauthorized Hacks 13 | . 2 . 8 . 2 . 1 Terminals 9 | . 2 . 6 . 1 . . Botnet 2 | . 1 . 1 . . . . Operators 1 | . . . . . 1 . . Skim 6 | . 1 . 5 . . . . Fabricators 2 | . . . . . 1 . 1 Haulers 2 | . . . . . 1 . 1 Repair Stations . | . . . . . . . . Recycling Units 2 | . . . 2 . . . . Tunnel 2 | . . . 2 . . . . Scanalyzers . | . . . . . . . . Garrison Access . | . . . . . . . . Data Cores Recovered . | . . . . . . . . Used . | . . . . . . . . Hacking Detections 20 | . 4 . 5 . 6 . 5 Full Trace Events 2 | . 1 . . . 1 . . Feedback Events 1 | . 1 . . . . . . Corruption 1 | . 1 . . . . . . Feedback Blocked . | . . . . . . . . Robot Schematics Acquired 1 | . 1 . . . . . . Robots Built . | . . . . . . . . Authchips . | . . . . . . . . Time . | . . . . . . . . Total Robot Build Rating . | . . . . . . . . Part Schematics Acquired 1 | . . . . . . . 1 Parts Built . | . . . . . . . . Authchips . | . . . . . . . . Time . | . . . . . . . . Total Part Build Rating . | . . . . . . . . Parts Repaired 5 | . 2 . . . . . 3 Time 288 | . 52 . . . . . 236 Parts Recycled . | . . . . . . . . Recycled Matter . | . . . . . . . . Retrieved Matter . | . . . . . . . . Retrieved Components . | . . . . . . . . Parts Scanalyzed 1 | . . . . . . . 1 Part Schematics Acquired 1 | . . . . . . . 1 Parts Damaged . | . . . . . . . . Bothacking | -11 -10 -10 -9 -9 -6 -6 -6 ------------ Run | Yrd Mat Sub Rec Scr Fac Was Fac Used RIF Installer . | . . . . . . . . Robots Hacked . | . . . . . . . . Non-combat . | . . . . . . . . Combat . | . . . . . . . . Robot Hacks Applied . | . . . . . . . . Relay Couplers Released 3 | . . . . . 3 . . Programmers 3 | . . . . . 3 . . Fabnet Peak Effective % . | . . . . . . . . Robots Rewired . | . . . . . . . . Allies Hacked . | . . . . . . . . Hacks Repelled . | . . . . . . . . Allies | -11 -10 -10 -9 -9 -6 -6 -6 -------- Run | Yrd Mat Sub Rec Scr Fac Was Fac Total Allies . | . . . . . . . . Largest Group . | . . . . . . . . Highest-Rated Group . | . . . . . . . . Highest-Rated Ally . | . . . . . . . . Total Orders . | . . . . . . . . Ally Attacks . | . . . . . . . . Total Damage . | . . . . . . . . Kills . | . . . . . . . . Allies Corrupted . | . . . . . . . . Allies Melted . | . . . . . . . . Intel | -11 -10 -10 -9 -9 -6 -6 -6 ------- Run | Yrd Mat Sub Rec Scr Fac Was Fac Robot Analysis Total . | . . . . . . . . Derelict Logs Recovered . | . . . . . . . . Drone Launches . | . . . . . . . . Drone Recoveries . | . . . . . . . . Exploration | -11 -10 -10 -9 -9 -6 -6 -6 ------------- Run | Yrd Mat Sub Rec Scr Fac Was Fac Turns Passed 9278 | 85 1885 1380 1667 2759 488 155 859 Spaces Moved 4133 | 49 642 518 680 1146 431 153 514 Core 2 | 2 . . . . . . . Treads 3033 | 47 642 518 680 1146 . . . Legs . | . . . . . . . . Wheels 1098 | . . . . . 431 153 514 Hover . | . . . . . . . . Flight . | . . . . . . . . Fastest Speed 50 | 50 160 240 240 240 100 90 90 Average Speed 202 | 155 234 240 240 240 106 95 107 Slowest Speed 320 | 160 320 240 240 240 110 110 120 Overloaded Moves . | . . . . . . . . Propulsion Burnouts . | . . . . . . . . Robots Hopped . | . . . . . . . . Cave-ins Triggered . | . . . . . . . . Exploration Rate (%) 57 | 4 95 48 98 86 16 98 13 Regions Visited 7 Branch Regions 3 Pre-discovered Areas 3 | . . . 3 . . . . Known Exits Taken 1 | . . . 1 . . . . Unknown Exits Taken 4 | 1 1 1 . 1 . . . Scrap Searched 2 | . . 1 . 1 . . . Spaces Dug 12 | . 4 . . . . . 8 Terrain Destroyed 66 | . 5 37 . . 1 . 23 Melee . | . . . . . . . . Projectile 18 | . 5 . . . 1 . 12 AOE 48 | . . 37 . . . . 11 Terrain Rammed . | . . . . . . . . Walls Destroyed . | . . . . . . . . Machines Disabled . | . . . . . . . . Actions | -11 -10 -10 -9 -9 -6 -6 -6 --------- Run | Yrd Mat Sub Rec Scr Fac Was Fac Total 4757 | 55 859 583 702 1159 461 162 776 Wait 354 | . 111 21 1 . 3 4 214 Move 4127 | 48 641 517 679 1145 431 152 514 Hop . | . . . . . . . . Pick Up 41 | 1 13 3 6 7 6 2 3 Fast Attach 20 | 6 4 . . . 3 1 6 Attach 14 | . 2 . 1 1 7 . 3 Detach 8 | . 2 . . . 4 . 2 Swap 15 | . 7 5 1 . 1 . 1 Drop 22 | . 2 . 5 6 3 3 3 Fire 146 | . 72 37 5 . 3 . 29 Melee . | . . . . . . . . Ram 1 | . . . . . . . 1 Kick . | . . . . . . . . Crush 9 | . 5 . 4 . . . . Escape Stasis . | . . . . . . . . Rewire . | . . . . . . . . Trap . | . . . . . . . . Miscellaneous . | . . . . . . . . Route ------- -11/Scrapyard -10/Materials (discovered 5 exits: [*Mat x2] / [*Min x2] / *Sub) -10/Subcaves -9/Recycling (discovered 2 exits: [*Fac] / *Scr) -9/Scraptown (discovered 2 exits: *Fac x2) -6/Factory -6/Waste -6/Factory History --------- Turn | Location | Event 6 | -11/Scrapyard | Discovered new exit (range 16) 86 | -11/Scrapyard | Entered Materials 151 | -10/Materials | Discovered new exit (range 13) 304 | -10/Materials | Build established: Mutant 483 | -10/Materials | Discovered new exit (range 7) 581 | -10/Materials | Discovered new exit (range 16) 1440 | -10/Materials | Discovered new exit (range 11) 1649 | -10/Materials | Repaired Lgt. Treads 1677 | -10/Materials | Repaired Lgt. Cannon 1953 | -10/Materials | Discovered new exit (range 7) 1971 | -10/Materials | Entered Subcaves 2344 | -10/Subcaves | Visited 4L-MR0's lab 2375 | -10/Subcaves | Found Prototype Leg 2385 | -10/Subcaves | Identified Cargo Legs 2507 | -10/Subcaves | Ambushed by Subdweller buried in earth 3141 | -10/Subcaves | Shifting Twisted Machinery released Sub. Laser 3167 | -10/Subcaves | Discovered new exit (range 9) 3351 | -10/Subcaves | Entered Recycling 3352 | -9/Recycling | Joined Warlord attack on 0b10 via Recycling 3946 | -9/Recycling | Core integrity fell below 50% 4450 | -9/Recycling | Learned Storage trap positions 4477 | -9/Recycling | Learned Materials stockpile data 4487 | -9/Recycling | Discovered new exit (range 7) 4492 | -9/Recycling | Learned Materials emergency access door positions 4499 | -9/Recycling | Identified exit to Scraptown 4505 | -9/Recycling | Learned Materials emergency access door positions 4523 | -9/Recycling | Learned 4 Materials zone layouts 4960 | -9/Recycling | Scanned before Scraplab entrance 4994 | -9/Recycling | Entered Scraplab 5018 | -9/Recycling | Entered Scraptown 5018 | -9/Scraptown | System corruption cleaned by C-Scrubber 5146 | -9/Scraptown | Visited Red Mages 5167 | -9/Scraptown | Visited Fellowship of the Rings 5222 | -9/Scraptown | Visited UFD Registry 5222 | -9/Scraptown | Registered with UFD as "Kineticoil" 5256 | -9/Scraptown | Visited Awakened 5280 | -9/Scraptown | Visited Symbiants 5333 | -9/Scraptown | Visited Assassins FH 5366 | -9/Scraptown | Visited Shadow of the Wyrm 5491 | -9/Scraptown | Visited Botcube Research 5568 | -9/Scraptown | Visited Modified Component R&D 5645 | -9/Scraptown | Visited Chapter 10 5702 | -9/Scraptown | Visited Abandonware Association 5726 | -9/Scraptown | Learned abandonware demo "OVRCLOCK.EXE" 5734 | -9/Scraptown | Learned abandonware demo "TRNCOAT.EXE" 5734 | -9/Scraptown | Learned abandonware demo "KABOOM.EXE" 5808 | -9/Scraptown | Visited Analyses Database 5844 | -9/Scraptown | Visited Scrapoid Pod Storage 5880 | -9/Scraptown | Visited Science Guys 5957 | -9/Scraptown | Visited Science Testing Area 5998 | -9/Scraptown | Visited Infowarlord's Domain 6060 | -9/Scraptown | Found Exp. Terrain Scanner 7294 | -9/Scraptown | Discovered new exit (range 13) 7688 | -9/Scraptown | Found Scrap Suit 7761 | -9/Scraptown | Discovered new exit (range 5) 7777 | -9/Scraptown | Entered Factory 7777 | -6/Factory | Evolved 8 slots: Power x1, Utility x5, Weapon x2 8067 | -6/Factory | Build established: Scrapper 8265 | -6/Factory | Sucked down chute 8265 | -6/Factory | Entered Waste 8269 | -6/Waste | Found Broken Exp. Signal Interpreter 8275 | -6/Waste | Spotted C-40 Crusher 8280 | -6/Waste | Spotted C-40 Crusher 8302 | -6/Waste | Spotted C-40 Crusher 8341 | -6/Waste | Spotted C-40 Crusher 8344 | -6/Waste | Spotted C-40 Crusher 8349 | -6/Waste | Crushed by Compactor (1 part destroyed, 2 dropped) 8350 | -6/Waste | Spotted C-40 Crusher 8354 | -6/Waste | Crushed by Compactor (1 part destroyed) 8385 | -6/Waste | Lost 3 parts (2p1w) 8406 | -6/Waste | Discovered new exit (range 10) 8420 | -6/Waste | Entered Factory 8609 | -6/Factory | Repaired Hvy. Linear Accelerator 8735 | -6/Factory | Repaired Broken Exp. Signal Interpreter 8794 | -6/Factory | Repaired Hrd. Heavy Armor Plating 8965 | -6/Factory | Spotted B-75 Beast 9242 | -6/Factory | Cargo convoy interrupted 9273 | -6/Factory | Core integrity fell below 50% 9278 | -6/Factory | Core integrity fell below 20% 9279 | -6/Factory | Destroyed by H-66 Slayer with Gauss Rifle Last Messages --------------- 09270_ Imp. Heavy Laser destroyed. 09270_ K-01 Serf collects debris. 09271_ Penetrated by Slug. 09271_ P-60 Hacker destroyed. 09271_ K-01 Serf collects debris. 09272_ Ovr. Huge Scrapsphere destroyed. 09272_ Penetrated by Slug. 09272_ Slug penetrates Terminal. 09273_ U-05 Engineer lays Concrete. 09274_ Scrap Suit destroyed. 09274_ Penetrated by Slug. 09274_ U-05 Engineer lays Concrete. 09275_ K-01 Serf collects debris. 09276_ Slug penetrates S-27 Virus. 09276_ S-27 Virus destroyed. 09276_ Penetrated by Slug. 09276_ U-05 Engineer lays Concrete. 09277_ Penetrated by Slug. 09278_ U-05 Engineer lays Concrete. 09279_ Penetrated by Slug. Map ----- +----------------------------------------------------+ | ??????????????????????????????A??????????????????? | | ????????"""""""??????????????????????????????????? | | ????????"""""""??????????????????????????????????? | | ????????"""""""??????????????????????????????????? | | ????????"""""""??????????????????????????????????? | | ?????????????????????????????????????????????????? | | ???A?????????????????????????????????????????????? | | ?????????????????????????????????????????????????? | | ?????????????????????????????????????????????????? | | ?????????????????????????????????????????????????? | | ?????????????????????????????????????????????????? | | ?????????????????????????????????????????????????? | | ????????????? T" ??####?????????????????????????? | | ????????????? " ??# ?????????????????????????? | | ????????????? ??# ?????????????????????????? | | ????????????? ??# ?????????????????????????? | | ?????????????# #??# ?????????????????????????? | | ?????????????# #### ##???????????????????????? | | ??"?"?"?"?"??# # % #???????????????????????? | | ??"?"?"?"?"??# ### #????????????????????????? | | ??"?"?"?"?"??# % ????????????????????????? | | #?"?"?"?"?"??+ %u [ ????????????????????????? | | #?"?"?"?"?"??# !%H*%????????????????????????? | | #?"?"?"?"?"??# ######k###??????????????????????? | | #?"?"?"?"?"??# # =h=sxh!#??????????????????????? | | #?"?"?"?"?"??# #u !!%[!@#??"""""???????????????? | | #?"?"?"?"?"??# BB s==*=|"#??"""""???????????????? | | #????????????# BBp ""[""#??"""?????????A???????? | | #????????????# # "" #??????????????????????? | | ############## # """ #??"""""???????????????? | | ## # # #??"""""???????????????? | | ## =# # #??"""?????????????????? | | ## # # = #??????????????????????? | | ## + ##########??????????????????????? | | ## # ###############?????????????????? | | # # # ????????????????? | | # # # ????????????????? | | + # # ????????????????? | | # #= !# #???????????????? | | # # ! # #???????????????? | | ############# =!# #???????????????? | | ########????# = # #???????????????? | | #????#!!!+ #???????????????? | | #????#!!!# #???????????????? | | !!! #????###%# #???????????????? | | !!! ##?????#!#################???????????????? | | !!! ??????#!#???????????????????????????????? | | ???????#!#???????????????????????????????? | | ???????# #T??????????????????????????????? | | """ ????? ???????????????????????????????? | +----------------------------------------------------+ Best States ------------- Heat Dissipation 37 Energy Generation 15 Energy Capacity 400 Matter Stores 300 Matter Capacity 300 Sight Range 16 Terrain Scan Range 30 Terrain Scan Density 10 Armor Coverage 600 Core Shielding 20 Evasion (%) 42 Targeting Accuracy 8 Recoil Reduction 2 Item Schematics ----------------- Hrd. Heavy Armor Plating | -6/Factory | Scanalyzed Robot Schematics ------------------ M-13 Machinist | -10/Materials | Hacked Fabricated ------------ Nothing Alien Tech Used ----------------- None Achievements -------------- None Challenges ------------ None Game ------ Seed VortexInsulatedScanner Manual? 0 Play Time 00:33:21 Cumulative 556.9 hours Start 2024.12.24 @ 08:41:00 End 2025.01.04 @ 08:00:04 Sessions 3 Manual Loads 0 Difficulty Rogue Special Mode None Game No. 323 Rogue 323 Adventurer 0 Explorer 0 Win Type - Total 43 Types 29/3/5/1/1/0/2/1/1 Lore% 87 Gallery% 86 Achievement% 86 Wizard Run 0 Options --------- Layout 0 ASCII 0 Keyboard 1 Movement Numpad Keybinds 0 Fullscreen 2 Font 18/SmallcapsGlow Map View 76x50 Zoom Use 0% Tactical HUD 1 Map Filters NONE Filters NONE Steam 1 RUN: 7e4de5a6-cdf0-4434-bde1-07112cc1c6bb